fUST/lending_fUST_20250901
["ID","MTS","AMOUNT","RATE_DAILY","PERIOD"]
[382693515,1756710646268,-480.0,0.00014287,2]
[382693517,1756710646278,-480.0,0.00014287,2]
[382693519,1756710646287,-480.0,0.00014287,2]
[382693521,1756710646297,-480.0,0.00014287,2]
[382693523,1756710646306,-480.0,0.00014287,2]
[382693525,1756710646315,-480.0,0.00014287,2]
[382693527,1756710646324,-480.0,0.00014287,2]
[382693529,1756710646335,-777.42,0.00014287,2]
[382693531,1756710646344,-480.0,0.00014287,2]
[382693533,1756710646353,-480.0,0.00014287,2]
[382693534,1756710646362,-773.54,0.00014287,2]
[382693536,1756710646372,-480.0,0.00014287,2]
[382693539,1756710646381,-793.87,0.00014287,2]
[382693540,1756710646391,-480.0,0.00014287,2]
[382693543,1756710646401,-1102.87,0.00014287,2]
[382693544,1756710646410,-510.93,0.00014287,2]
[382693547,1756710646420,-480.0,0.00014287,2]
[382693548,1756710646429,-480.0,0.00014287,2]
[382693551,1756710646439,-480.0,0.00014287,2]
[382693553,1756710646448,-480.0,0.00014287,2]
[382693554,1756710646458,-480.0,0.00014287,2]
[382693556,1756710646468,-480.0,0.00014287,2]
[382693558,1756710646478,-480.0,0.00014287,2]
[382693560,1756710646488,-480.0,0.00014287,2]
[382693562,1756710646498,-480.0,0.00014287,2]
[382693564,1756710646507,-1037.39,0.00014287,2]
[382693566,1756710646516,-480.0,0.00014287,2]
[382693568,1756710646525,-213.58266414,0.00014287,2]
[382693570,1756710646535,-480.0,0.00014287,2]
[382693572,1756710646545,-963.04,0.00014287,2]
[382693574,1756710646555,-480.0,0.00014287,2]
[382693576,1756710646564,-151.0,0.00014287,2]
[382693578,1756710646573,-480.0,0.00014287,2]
[382693580,1756710646584,-151.0,0.00014287,2]
[382693582,1756710646593,-151.0,0.00014287,2]
[382693584,1756710646604,-151.0,0.00014287,2]
[382693586,1756710646613,-480.0,0.00014287,2]
[382693588,1756710646623,-151.0,0.00014287,2]
[382693590,1756710646633,-151.0,0.00014287,2]
[382693592,1756710646642,-151.0,0.00014287,2]
[382693594,1756710646652,-480.0,0.00014287,2]
[382693596,1756710646661,-151.0,0.00014287,2]
[382693598,1756710646669,-613.41,0.00014287,2]
[382693600,1756710646678,-151.0,0.00014287,2]
[382693602,1756710646687,-151.0,0.00014287,2]
[382693604,1756710646695,-480.0,0.00014287,2]
[382693606,1756710646704,-484.77,0.00014287,2]
[382693608,1756710646713,-151.0,0.00014287,2]
[382693610,1756710646722,-151.0,0.00014287,2]
[382693612,1756710646730,-480.0,0.00014287,2]
[382693614,1756710646739,-480.0,0.00014287,2]
[382693616,1756710646748,-480.0,0.00014287,2]
[382693618,1756710646757,-495.77,0.00014287,2]
[382693620,1756710646766,-480.0,0.00014287,2]
[382693622,1756710646775,-296.77708557,0.00014287,2]
[382693624,1756710646785,-496.19970774,0.00014287,2]
[382693626,1756710646794,-480.0,0.00014287,2]
[382693628,1756710646803,-480.0,0.00014287,2]
[382693630,1756710646812,-506.5,0.00014287,2]
[382693632,1756710646821,-480.0,0.00014287,2]
[382693634,1756710646831,-480.0,0.00014287,2]
[382693636,1756710646841,-962.24,0.00014287,2]
[382693638,1756710646850,-480.0,0.00014287,2]
[382693639,1756710646860,-480.0,0.00014287,2]
[382693641,1756710646869,-480.0,0.00014287,2]
[382693644,1756710646878,-480.0,0.00014287,2]
[382693646,1756710646887,-480.0,0.00014287,2]
[382693648,1756710646897,-876.93,0.00014287,2]
[382693649,1756710646906,-480.0,0.00014287,2]
[382693651,1756710646915,-480.0,0.00014287,2]
[382693653,1756710646926,-480.0,0.00014287,2]
[382693655,1756710646937,-480.0,0.00014287,2]
[382693657,1756710646945,-480.0,0.00014287,2]
[382693659,1756710646955,-480.0,0.00014287,2]
[382693661,1756710646964,-480.0,0.00014287,2]
[382693663,1756710646974,-845.7,0.00014287,2]
[382693665,1756710646983,-492.52,0.00014287,2]
[382693667,1756710646993,-151.0,0.00014287,2]
[382693669,1756710647004,-151.0,0.00014287,2]
[382693671,1756710647013,-480.0,0.00014287,2]
[382693673,1756710647022,-151.0,0.00014287,2]
[382693675,1756710647030,-186.321703,0.00014287,2]
[382693677,1756710647040,-480.0,0.00014287,2]
[382693679,1756710647049,-151.0,0.00014287,2]
[382693681,1756710647059,-155.679495,0.00014287,2]
[382693683,1756710647068,-480.0,0.00014287,2]
[382693685,1756710647077,-278.677164,0.00014287,2]
[382693687,1756710647087,-480.0,0.00014287,2]
[382693689,1756710647096,-278.677164,0.00014287,2]
[382693691,1756710647106,-278.677164,0.00014287,2]
[382693693,1756710647115,-278.677164,0.00014287,2]
[382693695,1756710647124,-151.0,0.00014287,2]
[382693697,1756710647133,-151.0,0.00014287,2]
[382693699,1756710647142,-480.0,0.00014287,2]
[382693701,1756710647152,-480.0,0.00014287,2]
[382693703,1756710647161,-1012.35,0.00014287,2]
[382693705,1756710647170,-480.0,0.00014287,2]
[382693707,1756710647180,-480.0,0.00014287,2]
[382693709,1756710647189,-480.0,0.00014287,2]
[382693711,1756710647198,-480.0,0.00014287,2]
[382693713,1756710647208,-480.0,0.00014287,2]
[382693715,1756710647217,-480.0,0.00014287,2]
[382693717,1756710647227,-572.55,0.00014287,2]
[382693719,1756710647236,-480.0,0.00014287,2]
[382693721,1756710647245,-480.0,0.00014287,2]
[382693723,1756710647255,-480.0,0.00014287,2]
[382693725,1756710647267,-480.0,0.00014287,2]
[382693727,1756710647277,-480.0,0.00014287,2]
[382693729,1756710647286,-480.0,0.00014287,2]
[382693731,1756710647296,-486.95,0.00014287,2]
[382693733,1756710647305,-480.0,0.00014287,2]
[382693735,1756710647315,-480.0,0.00014287,2]
[382693737,1756710647325,-480.0,0.00014287,2]
[382693739,1756710647335,-755.11,0.00014287,2]
[382693741,1756710647345,-480.0,0.00014287,2]
[382693743,1756710647355,-151.0,0.00014288,2]
[382693745,1756710647364,-151.0,0.00014288,2]
[382693747,1756710647373,-151.0,0.00014288,2]
[382693749,1756710647383,-480.0,0.00014288,2]
[382693751,1756710647393,-692.96,0.00014288,2]
[382693754,1756710647405,-895.01,0.00014288,2]
[382693756,1756710647415,-1036.69,0.00014288,2]
[382693758,1756710647424,-514.62,0.00014288,2]
[382693760,1756710647436,-156.210329,0.00014288,2]
[382693762,1756710647447,-480.0,0.00014288,2]
[382693764,1756710647457,-151.0,0.00014288,2]
[382693766,1756710647467,-597.14,0.00014288,2]
[382693768,1756710647477,-566.67,0.00014288,2]
[382693770,1756710647489,-557.89,0.00014288,2]
[382693772,1756710647499,-480.0,0.00014288,2]
[382693774,1756710647513,-480.0,0.00014288,2]
[382693776,1756710647523,-480.0,0.00014288,2]
[382693778,1756710647532,-794.7,0.00014288,2]
[382693780,1756710647542,-480.0,0.00014288,2]
[382693783,1756710647552,-526.85,0.00014288,2]
[382693785,1756710647564,-481.89689575,0.00014288,2]
[382693787,1756710647573,-480.0,0.00014288,2]
[382693789,1756710647583,-817.22,0.00014288,2]
[382693791,1756710647593,-1428.46,0.00014288,2]
[382693793,1756710647603,-804.71,0.00014288,2]
[382693795,1756710647612,-480.0,0.00014288,2]
[382693797,1756710647622,-480.0,0.00014288,2]
[382693799,1756710647631,-480.0,0.00014288,2]
[382693801,1756710647642,-545.74,0.00014288,2]
[382693803,1756710647651,-480.0,0.00014288,2]
[382693805,1756710647661,-480.0,0.00014288,2]
[382693807,1756710647670,-480.0,0.00014289,2]
[382693809,1756710647680,-480.0,0.00014289,2]
[382693811,1756710647689,-480.0,0.00014289,2]
[382693813,1756710647699,-480.0,0.00014289,2]
[382693815,1756710647708,-480.0,0.00014289,2]
[382693817,1756710647718,-480.0,0.00014289,2]
[382693819,1756710647728,-480.0,0.00014289,2]
[382693820,1756710647738,-480.0,0.00014289,2]
[382693822,1756710647747,-480.0,0.00014289,2]
[382693825,1756710647758,-480.0,0.00014289,2]
[382693826,1756710647768,-480.0,0.00014289,2]
[382693829,1756710647778,-480.0,0.00014289,2]
[382693831,1756710647791,-480.0,0.00014289,2]
[382693833,1756710647801,-805.25,0.00014289,2]
[382693835,1756710647811,-646.06,0.00014289,2]
[382693837,1756710647821,-480.0,0.00014289,2]
[382693839,1756710647831,-480.0,0.00014289,2]
[382693841,1756710647841,-480.0,0.00014289,2]
[382693843,1756710647851,-480.0,0.00014289,2]
[382693845,1756710647861,-480.0,0.00014289,2]
[382693847,1756710647871,-641.61,0.00014289,2]
[382693849,1756710647880,-693.51,0.00014289,2]
[382693851,1756710647890,-480.0,0.00014289,2]
[382693853,1756710647900,-480.0,0.00014289,2]
[382693855,1756710647910,-151.0,0.00014289,2]
[382693857,1756710647920,-151.0,0.00014289,2]
[382693859,1756710647934,-564.58,0.00014289,2]
[382693861,1756710647944,-151.0,0.00014289,2]
[382693863,1756710647953,-772.76,0.00014289,2]
[382693865,1756710647963,-480.0,0.00014289,2]
[382693867,1756710647974,-480.0,0.00014289,2]
[382693869,1756710647983,-923.46,0.00014289,2]
[382693871,1756710647993,-480.0,0.00014289,2]
[382693873,1756710648004,-480.0,0.00014289,2]
[382693876,1756710648015,-480.0,0.00014289,2]
[382693878,1756710648025,-480.0,0.00014289,2]
[382693879,1756710648034,-480.0,0.00014289,2]
[382693882,1756710648044,-480.0,0.00014289,2]
[382693883,1756710648054,-480.0,0.00014289,2]
[382693885,1756710648064,-480.0,0.00014289,2]
[382693887,1756710648074,-480.0,0.00014289,2]
[382693889,1756710648084,-480.0,0.00014289,2]
[382693892,1756710648094,-482.61,0.00014289,2]
[382693893,1756710648104,-558.69,0.00014289,2]
[382693895,1756710648114,-151.0,0.00014289,2]
[382693898,1756710648124,-151.0,0.00014289,2]
[382693900,1756710648134,-1175.92,0.00014289,2]
[382693902,1756710648145,-153.354446,0.00014289,2]
[382693904,1756710648156,-151.0,0.00014289,2]
[382693906,1756710648166,-296.769354,0.00014289,2]
[382693908,1756710648176,-617.83,0.00014289,2]
[382693910,1756710648186,-151.0,0.00014289,2]
[382693912,1756710648196,-151.0,0.00014289,2]
[382693914,1756710648206,-151.0,0.00014289,2]
[382693916,1756710648216,-151.0,0.00014289,2]
[382693918,1756710648226,-480.0,0.00014289,2]
[382693920,1756710648236,-151.0,0.00014289,2]
[382693922,1756710648246,-151.0,0.00014289,2]
[382693924,1756710648256,-151.0,0.00014289,2]
[382693926,1756710648266,-245.079488,0.00014289,2]
[382693928,1756710648276,-245.079488,0.00014289,2]
[382693930,1756710648286,-245.079488,0.00014289,2]
[382693932,1756710648296,-245.079488,0.00014289,2]
[382693934,1756710648306,-151.0,0.00014289,2]
[382693936,1756710648316,-480.0,0.00014289,2]
[382693938,1756710648326,-151.0,0.00014289,2]
[382693941,1756710648336,-480.0,0.00014289,2]
[382693943,1756710648347,-480.0,0.00014289,2]
[382693945,1756710648357,-606.23,0.00014289,2]
[382693947,1756710648367,-525.85,0.00014289,2]
[382693949,1756710648376,-480.0,0.00014289,2]
[382693951,1756710648386,-480.0,0.00014289,2]
[382693953,1756710648396,-151.0,0.00014289,2]
[382693955,1756710648406,-319.321958,0.00014289,2]
[382693957,1756710648416,-319.321958,0.00014289,2]
[382693959,1756710648426,-319.321958,0.00014289,2]
[382693961,1756710648436,-319.321958,0.00014289,2]
[382693963,1756710648446,-151.0,0.00014289,2]
[382693965,1756710648456,-151.0,0.00014289,2]
[382693967,1756710648467,-189.419328,0.00014289,2]
[382693969,1756710648476,-151.0,0.00014289,2]
[382693971,1756710648486,-151.0,0.00014289,2]
[382693973,1756710648497,-152.601651,0.00014289,2]
[382693975,1756710648507,-1000.0,0.00014289,2]
[382693977,1756710648517,-1000.0,0.00014289,2]
[382693979,1756710648527,-1000.0,0.00014289,2]
[382693981,1756710648538,-1000.0,0.00014289,2]
[382693983,1756710648548,-1000.0,0.00014289,2]
[382693985,1756710648559,-1000.0,0.00014289,2]
[382693987,1756710648569,-1000.0,0.00014289,2]
[382693989,1756710648580,-1000.0,0.00014289,2]
[382693991,1756710648590,-151.0,0.00014289,2]
[382693993,1756710648600,-1000.0,0.00014289,2]
[382693995,1756710648610,-1000.0,0.00014289,2]
[382693997,1756710648620,-1000.0,0.00014289,2]
[382693999,1756710648630,-286.763492,0.00014289,2]
[382694001,1756710648640,-1320.0,0.00014294,2]
[382694004,1756710648650,-151.0,0.00014298,2]
[382694006,1756710648662,-151.0,0.00014298,2]
[382694008,1756710648672,-151.0,0.000143,2]
[382694010,1756710648682,-151.0,0.00014376,2]
[382694012,1756710648691,-151.0,0.00014376,2]
[382694014,1756710648700,-151.0,0.00014376,2]
[382694016,1756710648711,-151.0,0.00014376,2]
[382694018,1756710648720,-151.0,0.00014376,2]
[382694020,1756710648730,-151.0,0.00014376,2]
[382694022,1756710648740,-151.0,0.00014376,2]
[382694024,1756710648750,-151.0,0.00014376,2]
[382694026,1756710648760,-278.677164,0.00014376,2]
[382694028,1756710648770,-278.677164,0.00014376,2]
[382694030,1756710648780,-278.677164,0.00014376,2]
[382694032,1756710648791,-278.677164,0.00014376,2]
[382694034,1756710648804,-151.0,0.00014376,2]
[382694036,1756710648814,-154.132715,0.00014376,2]
[382694038,1756710648825,-20836.93342163,0.00014376,2]
[382694040,1756710648838,-160.0,0.00014397,2]
[382694042,1756710648848,-230.0,0.00014403,2]
[382694045,1756710648859,-160.0,0.00014412,2]
[382694047,1756710648869,-151.0,0.00014413,2]
[382694049,1756710648879,-151.0,0.00014413,2]
[382694051,1756710648888,-183.492138,0.00014413,2]
[382694053,1756710648898,-11366.76240249,0.00014414,2]
[382694055,1756710648908,-232.83393981,0.00014415,2]
[382694057,1756710648918,-160.0,0.00014415,2]
[382694058,1756710648930,-160.0,0.00014415,2]
[382694061,1756710648941,-846.10922732,0.00014415,2]
[382694063,1756710648951,-160.0,0.00014415,2]
[382694065,1756710648960,-417.15472785,0.00014415,2]
[382694067,1756710648971,-425.82406011,0.00014415,2]
[382694069,1756710648981,-160.0,0.00014415,2]
[382694071,1756710648991,-160.0,0.00014415,2]
[382694073,1756710649003,-217.44302069,0.00014415,2]
[382694075,1756710649013,-90.83545885,0.00014415,2]
[382694106,1756710649292,-69.16454115,0.00014415,2]
[382694108,1756710649302,-530.14184084,0.00014415,2]
[382694110,1756710649312,-160.0,0.00014415,2]
[382694112,1756710649322,-160.0,0.00014415,2]
[382694123,1756710649332,-887.38197957,0.00014461,2]
[382694124,1756710649526,-151.0,0.000145,2]
[382694125,1756710649536,-391.557,0.00014531,2]
[382694126,1756710649546,-1039.51,0.00014558,2]
[382694127,1756710649556,-480.0,0.00014558,2]
[382694129,1756710649565,-480.0,0.00014558,2]
[382694130,1756710649575,-480.0,0.00014558,2]
[382694132,1756710649585,-1190.77,0.00014558,2]
[382694134,1756710649595,-480.0,0.00014558,2]
[382694136,1756710649605,-480.0,0.00014558,2]
[382694138,1756710649615,-900.84,0.00014558,2]
[382694140,1756710649624,-1808.15,0.00014558,2]
[382694142,1756710649634,-480.0,0.00014558,2]
[382694144,1756710649643,-1251.99,0.00014558,2]
[382694146,1756710649653,-480.0,0.00014558,2]
[382694148,1756710649662,-1764.67,0.00014558,2]
[382694150,1756710649672,-500.0,0.00014559,2]
[382694152,1756710649681,-151.0,0.00014559,2]
[382694154,1756710649690,-151.0,0.00014559,2]
[382694156,1756710649700,-512.42748391,0.00014559,2]
[382694158,1756710649709,-1432.0,0.00014559,2]
[382694160,1756710649718,-151.0,0.00014559,2]
[382694162,1756710649729,-151.0,0.00014559,2]
[382694164,1756710649738,-152.86646227,0.00014559,2]
[382694166,1756710649748,-499.69705936,0.00014559,2]
[382694168,1756710649757,-480.0,0.00014559,2]
[382694170,1756710649767,-851.54,0.00014559,2]
[382694172,1756710649777,-480.0,0.00014559,2]
[382694174,1756710649787,-480.0,0.00014559,2]
[382694176,1756710649796,-480.0,0.00014559,2]
[382694178,1756710649806,-480.0,0.00014559,2]
[382694180,1756710649815,-480.0,0.00014559,2]
[382694182,1756710649825,-480.0,0.00014559,2]
[382694184,1756710649835,-480.0,0.00014559,2]
[382694186,1756710649844,-480.0,0.00014559,2]
[382694188,1756710649854,-169.60671576,0.00014559,2]
[382694190,1756710649863,-480.0,0.00014559,2]
[382694192,1756710649873,-167.77579165,0.00014559,2]
[382694221,1756710650159,-480.0,0.00014011,2]
[382694223,1756710650169,-311.63276069,0.00014011,2]
[382694225,1756710650178,-480.0,0.00014013,2]
[382694227,1756710650187,-480.0,0.00014013,2]
[382694229,1756710650196,-151.0,0.00014285,2]
[382694231,1756710650206,-151.0,0.00014286,2]
[382694233,1756710650215,-480.0,0.00014287,2]
[382694235,1756710650224,-1000.0,0.00014289,2]
[382694237,1756710650233,-151.0,0.00014289,2]
[382694239,1756710650243,-1000.0,0.00014289,2]
[382694241,1756710650252,-151.0,0.00014289,2]
[382694243,1756710650261,-312.22420835,0.00014559,2]
[382694245,1756710650271,-480.0,0.00014559,2]
[382694247,1756710650281,-581.78,0.00014559,2]
[382694249,1756710650291,-504.59,0.00014559,2]
[382694251,1756710650300,-907.92,0.00014559,2]
[382694253,1756710650309,-480.0,0.00014559,2]
[382694255,1756710650318,-589.06,0.00014559,2]
[382694256,1756710650327,-623.19,0.00014559,2]
[382694259,1756710650337,-480.0,0.00014559,2]
[382694260,1756710650347,-480.0,0.00014559,2]
[382694263,1756710650357,-151.0,0.00014559,2]
[382694264,1756710650366,-453.201397,0.00014559,2]
[382694266,1756710650376,-480.0,0.00014559,2]
[382694268,1756710650385,-480.0,0.00014559,2]
[382694270,1756710650395,-480.0,0.00014559,2]
[382694272,1756710650404,-177.46899387,0.00014559,2]
[382694275,1756710650416,-302.53100613,0.00014559,2]
[382694277,1756710650425,-631.58,0.00014559,2]
[382694279,1756710650435,-480.0,0.00014559,2]
[382694280,1756710650445,-75.57778721,0.00014559,2]
[382694323,1756710650853,320.00000001,0.00013912,2]
[382694346,1756710651080,-480.00000001,0.00014011,2]
[382694348,1756710651090,-480.0,0.00014011,2]
[382694350,1756710651100,-480.0,0.00014011,2]
[382694352,1756710651110,-480.0,0.00014011,2]
[382694354,1756710651119,-480.0,0.00014011,2]
[382694356,1756710651129,-480.0,0.00014014,2]
[382694358,1756710651139,-151.0,0.00014285,2]
[382694360,1756710651148,-480.0,0.00014285,2]
[382694362,1756710651157,-480.0,0.00014285,2]
[382694364,1756710651167,-480.0,0.00014285,2]
[382694366,1756710651177,-179.175274,0.00014286,2]
[382694368,1756710651186,-480.0,0.00014288,2]
[382694370,1756710651195,-404.42221279,0.00014559,2]
[382694372,1756710651204,-480.0,0.00014559,2]
[382694374,1756710651214,-817.78,0.00014559,2]
[382694376,1756710651223,-634.08,0.00014559,2]
[382694378,1756710651233,-480.0,0.00014559,2]
[382694380,1756710651242,-480.0,0.00014559,2]
[382694382,1756710651251,-480.0,0.00014559,2]
[382694384,1756710651263,-480.0,0.00014559,2]
[382694386,1756710651272,-751.66,0.00014559,2]
[382694388,1756710651282,-480.0,0.00014559,2]
[382694390,1756710651291,-480.56,0.00014559,2]
[382694392,1756710651301,-787.42,0.00014559,2]
[382694394,1756710651311,-964.57,0.00014559,2]
[382694396,1756710651320,-480.0,0.00014559,2]
[382694398,1756710651330,-791.7,0.00014559,2]
[382694400,1756710651339,-151.0,0.00014559,2]
[382694402,1756710651349,-480.0,0.00014559,2]
[382694404,1756710651359,-2155.71,0.00014559,2]
[382694406,1756710651370,-319.321958,0.00014559,2]
[382694408,1756710651380,-319.321958,0.00014559,2]
[382694410,1756710651389,-319.321958,0.00014559,2]
[382694412,1756710651399,-319.321958,0.00014559,2]
[382694414,1756710651408,-517.84,0.00014559,2]
[382694416,1756710651418,-480.0,0.00014559,2]
[382694418,1756710651427,-698.63,0.00014559,2]
[382694420,1756710651437,-480.0,0.00014559,2]
[382694422,1756710651446,-744.38,0.00014559,2]
[382694424,1756710651455,-480.0,0.00014559,2]
[382694426,1756710651465,-480.0,0.00014559,2]
[382694428,1756710651474,-1049.21,0.00014559,2]
[382694430,1756710651483,-590.34,0.00014559,2]
[382694432,1756710651492,-480.0,0.00014559,2]
[382694434,1756710651502,-645.2,0.00014559,2]
[382694436,1756710651511,-409.78399874,0.00014559,2]
[382694438,1756710651520,-480.0,0.00014559,2]
[382694440,1756710651530,-480.0,0.00014559,2]
[382694442,1756710651539,-699.41,0.00014559,2]
[382694444,1756710651548,-480.0,0.00014559,2]
[382694446,1756710651558,-192.36864164,0.00014559,2]
[382694448,1756710651567,-151.0,0.00014559,2]
[382694450,1756710651576,-151.0,0.00014559,2]
[382694452,1756710651587,-480.0,0.00014559,2]
[382694454,1756710651597,-480.0,0.00014559,2]
[382694456,1756710651606,-946.47,0.00014559,2]
[382694458,1756710651615,-576.9,0.00014559,2]
[382694460,1756710651624,-151.0,0.00014559,2]
[382694462,1756710651633,-480.0,0.00014559,2]
[382694463,1756710651643,-708.73,0.00014559,2]
[382694465,1756710651652,-842.48,0.00014559,2]
[382694467,1756710651662,-480.0,0.00014559,2]
[382694469,1756710651671,-480.0,0.00014559,2]
[382694471,1756710651680,-637.94,0.00014559,2]
[382694473,1756710651689,-480.0,0.00014559,2]
[382694475,1756710651699,-282.91472421,0.00014559,2]
[382694477,1756710651708,-480.0,0.00014559,2]
[382694479,1756710651717,-151.0,0.00014559,2]
[382694481,1756710651727,-917.63,0.00014559,2]
[382694482,1756710651736,-480.0,0.00014559,2]
[382694483,1756710651744,-503.19,0.00014559,2]
[382694484,1756710651753,-480.0,0.00014559,2]
[382694485,1756710651764,-1091.77,0.00014559,2]
[382694486,1756710651773,-480.0,0.00014559,2]
[382694487,1756710651782,-480.0,0.00014559,2]
[382694488,1756710651791,-151.0,0.00014559,2]
[382694489,1756710651800,-151.0,0.00014559,2]
[382694490,1756710651809,-151.0,0.00014559,2]
[382694491,1756710651818,-480.0,0.00014559,2]
[382694492,1756710651827,-445.41,0.00014559,2]
[382694493,1756710651837,-169.25666435,0.0001456,2]
[382694494,1756710651847,-500.0,0.0001456,2]
[382694495,1756710651855,-167.09735349,0.0001456,2]
[382694496,1756710651865,-151.0,0.0001456,2]
[382694497,1756710651874,-283.58799711,0.0001456,2]
[382694498,1756710651883,-500.0,0.0001456,2]
[382694499,1756710651891,-176.8621835,0.0001456,2]
[382694500,1756710651900,-773.67,0.0001456,2]
[382694501,1756710651910,-480.0,0.0001456,2]
[382694502,1756710651919,-779.01,0.0001456,2]
[382694503,1756710651931,-151.0,0.0001456,2]
[382694504,1756710651940,-151.0,0.0001456,2]
[382694505,1756710651949,-480.0,0.0001456,2]
[382694506,1756710651958,-566.67,0.0001456,2]
[382694507,1756710651968,-480.0,0.0001456,2]
[382694508,1756710651978,-504.35,0.0001456,2]
[382694509,1756710651986,-480.0,0.0001456,2]
[382694510,1756710651995,-480.0,0.0001456,2]
[382694511,1756710652006,-556.3,0.0001456,2]
[382694512,1756710652015,-1100.19,0.0001456,2]
[382694513,1756710652024,-480.0,0.0001456,2]
[382694514,1756710652033,-480.0,0.0001456,2]
[382694515,1756710652042,-480.0,0.0001456,2]
[382694516,1756710652051,-917.12,0.0001456,2]
[382694518,1756710652060,-996.71,0.0001456,2]
[382694519,1756710652069,-151.0,0.0001456,2]
[382694520,1756710652078,-151.0,0.0001456,2]
[382694521,1756710652088,-480.0,0.0001456,2]
[382694522,1756710652097,-1027.18,0.0001456,2]
[382694523,1756710652106,-151.0,0.0001456,2]
[382694524,1756710652115,-480.0,0.0001456,2]
[382694526,1756710652125,-894.41,0.0001456,2]
[382694527,1756710652134,-480.0,0.0001456,2]
[382694529,1756710652143,-151.0,0.0001456,2]
[382694531,1756710652152,-153.302851,0.0001456,2]
[382694533,1756710652162,-480.0,0.0001456,2]
[382694535,1756710652171,-151.0,0.0001456,2]
[382694537,1756710652181,-151.0,0.0001456,2]
[382694539,1756710652191,-499.82,0.0001456,2]
[382694541,1756710652200,-480.0,0.0001456,2]
[382694543,1756710652210,-247.481536,0.0001456,2]
[382694545,1756710652219,-151.0,0.0001456,2]
[382694547,1756710652229,-151.0,0.0001456,2]
[382694549,1756710652238,-556.35,0.0001456,2]
[382694551,1756710652249,-245.079488,0.0001456,2]
[382694553,1756710652258,-245.079488,0.0001456,2]
[382694555,1756710652269,-245.079488,0.0001456,2]
[382694557,1756710652277,-245.079488,0.0001456,2]
[382694559,1756710652287,-159.919406,0.0001456,2]
[382694561,1756710652296,-480.0,0.0001456,2]
[382694563,1756710652306,-972.48,0.0001456,2]
[382694565,1756710652315,-151.0,0.0001456,2]
[382694567,1756710652325,-991.88,0.0001456,2]
[382694569,1756710652335,-1001.58,0.0001456,2]
[382694571,1756710652345,-480.0,0.0001456,2]
[382694573,1756710652355,-798.82,0.0001456,2]
[382694575,1756710652365,-480.0,0.0001456,2]
[382694577,1756710652373,-1206.93,0.0001456,2]
[382694579,1756710652382,-1014.88,0.0001456,2]
[382694581,1756710652392,-1203.81,0.0001456,2]
[382694583,1756710652401,-2611.98,0.0001456,2]
[382694585,1756710652412,-151.0,0.0001456,2]
[382694587,1756710652421,-480.0,0.0001456,2]
[382694589,1756710652430,-558.68,0.0001456,2]
[382694591,1756710652440,-296.855791,0.0001456,2]
[382694593,1756710652449,-278.677164,0.0001456,2]
[382694595,1756710652458,-278.677164,0.0001456,2]